[Event "Late-Titled-Tuesday-Blitz-February-27-2024"]
[Site "Chess.com"]
[Date "2024.02.27"]
[Round "10"]
[White "Arystanner"]
[Black "mightysmasher"]
[Result "1/2-1/2"]
[WhiteElo "2790"]
[BlackElo "2589"]
[TimeControl "180+1"]
[EndTime "15:57:16 PST"]
[Termination "Game drawn - insufficient material"]

1. d4 {[%clk 0:03:00.9]} 1... d5 {[%clk 0:02:58.2]} 2. c4 {[%clk 0:03:01.3]}
2... e6 {[%clk 0:02:58.2]} 3. Nc3 {[%clk 0:03:01.2]} 3... Nf6 {[%clk 0:02:58.7]}
4. Bg5 {[%clk 0:03:01.4]} 4... Be7 {[%clk 0:02:59.2]} 5. e3 {[%clk 0:03:01.5]}
5... O-O {[%clk 0:02:59.7]} 6. Rc1 {[%clk 0:03:01.6]} 6... c6 {[%clk 0:02:59.3]}
7. Nf3 {[%clk 0:03:01.5]} 7... Re8 {[%clk 0:02:58.4]} 8. Bd3 {[%clk 0:03:01.4]}
8... dxc4 {[%clk 0:02:58.3]} 9. Bxc4 {[%clk 0:03:02.3]} 9... Nd5 {[%clk
0:02:58.6]} 10. h4 {[%clk 0:03:00.8]} 10... h6 {[%clk 0:02:57.4]} 11. Bxe7
{[%clk 0:02:58.4]} 11... Qxe7 {[%clk 0:02:57]} 12. O-O {[%clk 0:02:54.3]} 12...
Nd7 {[%clk 0:02:56.6]} 13. e4 {[%clk 0:02:39.4]} 13... Nxc3 {[%clk 0:02:53]} 14.
bxc3 {[%clk 0:02:38.1]} 14... b6 {[%clk 0:02:47.3]} 15. Re1 {[%clk 0:02:27]}
15... Bb7 {[%clk 0:02:45.4]} 16. Bb3 {[%clk 0:02:20.2]} 16... Rad8 {[%clk
0:02:44.3]} 17. Qe2 {[%clk 0:02:18.6]} 17... c5 {[%clk 0:02:40.8]} 18. Rcd1
{[%clk 0:02:18.1]} 18... cxd4 {[%clk 0:02:39.4]} 19. cxd4 {[%clk 0:02:18.2]}
19... Nf6 {[%clk 0:02:39.5]} 20. Ba4 {[%clk 0:02:08.8]} 20... Rf8 {[%clk
0:02:37.2]} 21. Bc2 {[%clk 0:02:08.6]} 21... Rfe8 {[%clk 0:02:35]} 22. e5 {[%clk
0:02:01.4]} 22... Nd5 {[%clk 0:02:34.2]} 23. Qe4 {[%clk 0:01:52.1]} 23... g6
{[%clk 0:02:32.6]} 24. Qg4 {[%clk 0:01:49.6]} 24... Rc8 {[%clk 0:02:28.5]} 25.
Be4 {[%clk 0:01:24.3]} 25... h5 {[%clk 0:02:24.1]} 26. Qg3 {[%clk 0:01:23.9]}
26... Nc3 {[%clk 0:02:13.2]} 27. Bxb7 {[%clk 0:01:23.3]} 27... Qxb7 {[%clk
0:02:12.2]} 28. Rd3 {[%clk 0:01:19.9]} 28... Nd5 {[%clk 0:02:00.6]} 29. Ng5
{[%clk 0:01:17.1]} 29... Ne7 {[%clk 0:01:57.9]} 30. Ne4 {[%clk 0:01:14.3]} 30...
Nf5 {[%clk 0:01:54.1]} 31. Nf6+ {[%clk 0:01:12.6]} 31... Kf8 {[%clk 0:01:43]}
32. Qf4 {[%clk 0:01:07.2]} 32... Red8 {[%clk 0:01:40.2]} 33. Red1 {[%clk
0:00:51.1]} 33... Qa6 {[%clk 0:01:11.5]} 34. d5 {[%clk 0:00:43.4]} 34... exd5
{[%clk 0:01:00]} 35. Nxd5 {[%clk 0:00:43.4]} 35... Qc4 {[%clk 0:00:51.4]} 36.
Qf3 {[%clk 0:00:22.7]} 36... Qxh4 {[%clk 0:00:42.5]} 37. e6 {[%clk 0:00:22.8]}
37... fxe6 {[%clk 0:00:34.2]} 38. Nf4 {[%clk 0:00:23.2]} 38... Rxd3 {[%clk
0:00:25.1]} 39. Nxe6+ {[%clk 0:00:12.3]} 39... Kg8 {[%clk 0:00:21.7]} 40. Qxd3
{[%clk 0:00:12.7]} 40... Qc4 {[%clk 0:00:17]} 41. Qd7 {[%clk 0:00:12.7]} 41...
Qc6 {[%clk 0:00:11]} 42. Nf4 {[%clk 0:00:05.2]} 42... Qxd7 {[%clk 0:00:10.6]}
43. Rxd7 {[%clk 0:00:06.1]} 43... Rc1+ {[%clk 0:00:09.9]} 44. Kh2 {[%clk
0:00:05.2]} 44... Rc2 {[%clk 0:00:10.2]} 45. f3 {[%clk 0:00:05.1]} 45... Rc6
{[%clk 0:00:08.4]} 46. Rxa7 {[%clk 0:00:04.8]} 46... h4 {[%clk 0:00:08.4]} 47.
Nd5 {[%clk 0:00:04.9]} 47... Rc2 {[%clk 0:00:05.3]} 48. Kh3 {[%clk 0:00:05.3]}
48... Rd2 {[%clk 0:00:04.4]} 49. Nf6+ {[%clk 0:00:05.3]} 49... Kf8 {[%clk
0:00:04.3]} 50. Nd7+ {[%clk 0:00:04.4]} 50... Ke7 {[%clk 0:00:04.1]} 51. Nxb6+
{[%clk 0:00:04.9]} 51... Kf6 {[%clk 0:00:04.1]} 52. Ra6 {[%clk 0:00:04]} 52...
Kg5 {[%clk 0:00:04]} 53. Nc4 {[%clk 0:00:04]} 53... Rd1 {[%clk 0:00:03.9]} 54.
g4 {[%clk 0:00:03.1]} 54... hxg3 {[%clk 0:00:03.8]} 55. Ne5 {[%clk 0:00:03.7]}
55... Rh1+ {[%clk 0:00:03.5]} 56. Kg2 {[%clk 0:00:04.3]} 56... Rh2+ {[%clk
0:00:04.4]} 57. Kg1 {[%clk 0:00:05]} 57... Kf4 {[%clk 0:00:04.7]} 58. Nxg6+
{[%clk 0:00:03.6]} 58... Kxf3 {[%clk 0:00:04.8]} 59. Ra3+ {[%clk 0:00:04.3]}
59... Ne3 {[%clk 0:00:04.6]} 60. Ne5+ {[%clk 0:00:04.1]} 60... Ke4 {[%clk
0:00:02.7]} 61. Rxe3+ {[%clk 0:00:03.1]} 61... Kxe3 {[%clk 0:00:02.8]} 62. Ng4+
{[%clk 0:00:03.6]} 62... Kd4 {[%clk 0:00:03.4]} 63. Nxh2 {[%clk 0:00:03.8]}
63... gxh2+ {[%clk 0:00:04.3]} 64. Kxh2 {[%clk 0:00:03.6]} 64... Kc3 {[%clk
0:00:04.1]} 65. Kg2 {[%clk 0:00:04.5]} 65... Kb4 {[%clk 0:00:04.1]} 66. Kf2
{[%clk 0:00:04.8]} 66... Ka3 {[%clk 0:00:04.5]} 67. Ke1 {[%clk 0:00:05.7]} 67...
Kxa2 {[%clk 0:00:04.9]} 1/2-1/2

[Event "Late-Titled-Tuesday-Blitz-February-27-2024"]
[Site "Chess.com"]
[Date "2024.02.27"]
[Round "10"]
[White "Yaacovn"]
[Black "dropstoneDP"]
[Result "0-1"]
[WhiteElo "2841"]
[BlackElo "2982"]
[TimeControl "180+1"]
[EndTime "15:57:52 PST"]
[Termination "dropstoneDP won by resignation"]

1. d4 {[%clk 0:03:00.9]} 1... d5 {[%clk 0:02:59.2]} 2. e3 {[%clk 0:03:00.4]}
2... Nf6 {[%clk 0:02:57.6]} 3. Bd3 {[%clk 0:03:00.7]} 3... c5 {[%clk 0:02:56.9]}
4. c3 {[%clk 0:03:01]} 4... Nc6 {[%clk 0:02:56.3]} 5. f4 {[%clk 0:03:01.5]} 5...
g6 {[%clk 0:02:53.8]} 6. Nf3 {[%clk 0:03:01.7]} 6... Bf5 {[%clk 0:02:53.4]} 7.
O-O {[%clk 0:03:01.5]} 7... Bxd3 {[%clk 0:02:50.3]} 8. Qxd3 {[%clk 0:03:02.4]}
8... e6 {[%clk 0:02:49.3]} 9. Nbd2 {[%clk 0:03:02.2]} 9... Qe7 {[%clk
0:02:48.6]} 10. b3 {[%clk 0:02:57.6]} 10... cxd4 {[%clk 0:02:48.1]} 11. exd4
{[%clk 0:02:57.4]} 11... Bg7 {[%clk 0:02:48.1]} 12. a4 {[%clk 0:02:57.7]} 12...
Qc7 {[%clk 0:02:43.4]} 13. Ba3 {[%clk 0:02:56.2]} 13... Bf8 {[%clk 0:02:38.8]}
14. Bxf8 {[%clk 0:02:55.2]} 14... Kxf8 {[%clk 0:02:33.7]} 15. Ne5 {[%clk
0:02:53.8]} 15... Rc8 {[%clk 0:02:31.9]} 16. Rac1 {[%clk 0:02:49.4]} 16... Kg7
{[%clk 0:02:31.8]} 17. h3 {[%clk 0:02:46.9]} 17... a6 {[%clk 0:02:24]} 18. Qe2
{[%clk 0:02:43.9]} 18... Ne8 {[%clk 0:02:07.9]} 19. Ndf3 {[%clk 0:02:37.1]}
19... Nd6 {[%clk 0:01:53.7]} 20. Ng5 {[%clk 0:02:33.3]} 20... Rhe8 {[%clk
0:01:48.3]} 21. Rce1 {[%clk 0:02:13.4]} 21... f6 {[%clk 0:01:28.7]} 22. Nxc6
{[%clk 0:01:58.5]} 22... Qxc6 {[%clk 0:01:29.6]} 23. Nxe6+ {[%clk 0:01:52.8]}
23... Kf7 {[%clk 0:01:30]} 24. Qg4 {[%clk 0:01:19.5]} 24... Nf5 {[%clk
0:01:29.3]} 25. Nc5 {[%clk 0:00:56.3]} 25... b6 {[%clk 0:01:29.5]} 26. Nxa6
{[%clk 0:00:55.3]} 26... Qxc3 {[%clk 0:01:28.2]} 27. Rxe8 {[%clk 0:00:36.9]}
27... Rxe8 {[%clk 0:01:29.1]} 28. Qf3 {[%clk 0:00:31.1]} 28... Qxd4+ {[%clk
0:01:26.7]} 29. Kh2 {[%clk 0:00:30.2]} 29... Re3 {[%clk 0:01:17.7]} 30. Qd1
{[%clk 0:00:25.3]} 30... Qxd1 {[%clk 0:00:52.5]} 31. Rxd1 {[%clk 0:00:25]} 31...
d4 {[%clk 0:00:52.6]} 32. b4 {[%clk 0:00:19.3]} 32... Ra3 {[%clk 0:00:53.5]} 33.
g4 {[%clk 0:00:15.9]} 33... Nh4 {[%clk 0:00:52.8]} 34. a5 {[%clk 0:00:14.1]}
34... bxa5 {[%clk 0:00:52.8]} 35. bxa5 {[%clk 0:00:15]} 35... Rxa5 {[%clk
0:00:52.4]} 36. Nb4 {[%clk 0:00:15.5]} 36... Ra4 {[%clk 0:00:47.2]} 37. Nc6
{[%clk 0:00:15.1]} 37... Ra2+ {[%clk 0:00:45.8]} 38. Kg3 {[%clk 0:00:15.1]}
38... g5 {[%clk 0:00:45.2]} 39. fxg5 {[%clk 0:00:13.2]} 39... fxg5 {[%clk
0:00:46.1]} 40. Rf1+ {[%clk 0:00:11.4]} 40... Ke6 {[%clk 0:00:29.8]} 41. Nxd4+
{[%clk 0:00:11.1]} 41... Kd5 {[%clk 0:00:30.2]} 42. Ne2 {[%clk 0:00:10.9]} 42...
Rxe2 {[%clk 0:00:22.8]} 43. Rd1+ {[%clk 0:00:11.1]} 43... Ke5 {[%clk 0:00:21.3]}
44. Rd5+ {[%clk 0:00:09.9]} 44... Kf6 {[%clk 0:00:21.6]} 45. Rxg5 {[%clk
0:00:04.8]} 45... Ng6 {[%clk 0:00:19.7]} 46. Rf5+ {[%clk 0:00:04.4]} 46... Ke6
{[%clk 0:00:18.9]} 47. Ra5 {[%clk 0:00:04.8]} 47... Re3+ {[%clk 0:00:19]} 48.
Kh2 {[%clk 0:00:05.3]} 48... Nf4 {[%clk 0:00:17.8]} 49. Ra6+ {[%clk 0:00:05.8]}
49... Ke5 {[%clk 0:00:17.7]} 50. Rh6 {[%clk 0:00:06.3]} 50... Ke4 {[%clk
0:00:16.3]} 51. Rxh7 {[%clk 0:00:04.9]} 51... Kf3 {[%clk 0:00:16.9]} 52. Ra7
{[%clk 0:00:05.7]} 52... Re2+ {[%clk 0:00:16.7]} 53. Kh1 {[%clk 0:00:06.3]}
53... Nd5 {[%clk 0:00:10]} 54. Ra1 {[%clk 0:00:05.1]} 54... Kg3 {[%clk
0:00:08.8]} 55. Ra3+ {[%clk 0:00:04.9]} 55... Ne3 {[%clk 0:00:08.8]} 56. Ra1
{[%clk 0:00:04.1]} 56... Rh2+ {[%clk 0:00:04.1]} 57. Kg1 {[%clk 0:00:04.3]}
57... Rg2+ {[%clk 0:00:04.7]} 58. Kh1 {[%clk 0:00:04.9]} 58... Kxh3 {[%clk
0:00:04.9]} 59. Ra3 {[%clk 0:00:04.5]} 59... Re2 {[%clk 0:00:05.1]} 60. Ra1
{[%clk 0:00:04.6]} 60... Nd5 {[%clk 0:00:03.6]} 61. Ra3+ {[%clk 0:00:04.7]}
61... Kh4 {[%clk 0:00:03.6]} 62. Kg1 {[%clk 0:00:05]} 62... Ne3 {[%clk 0:00:04]}
63. Ra1 {[%clk 0:00:03.9]} 63... Kg3 {[%clk 0:00:04.3]} 64. Kh1 {[%clk
0:00:04.5]} 64... Rh2+ {[%clk 0:00:04.6]} 65. Kg1 {[%clk 0:00:04.9]} 65... Rg2+
{[%clk 0:00:05.2]} 66. Kh1 {[%clk 0:00:05]} 66... Rd2 {[%clk 0:00:05.2]} 67.
Rg1+ {[%clk 0:00:04.3]} 67... Kh3 {[%clk 0:00:05.3]} 68. Re1 {[%clk 0:00:05.1]}
68... Ng2 {[%clk 0:00:05.3]} 69. Ra1 {[%clk 0:00:04.5]} 69... Nh4 {[%clk
0:00:04.7]} 70. Ra3+ {[%clk 0:00:04.8]} 70... Kxg4 {[%clk 0:00:05.3]} 71. Rc3
{[%clk 0:00:04.1]} 71... Re2 {[%clk 0:00:04.3]} 72. Ra3 {[%clk 0:00:04.1]} 72...
Re4 {[%clk 0:00:03.4]} 73. Rb3 {[%clk 0:00:04]} 73... Re2 {[%clk 0:00:03.5]} 74.
Ra3 {[%clk 0:00:04.2]} 74... Nf5 {[%clk 0:00:04.1]} 75. Kg1 {[%clk 0:00:03.8]}
75... Ng3 {[%clk 0:00:04.2]} 76. Ra4+ {[%clk 0:00:04.3]} 76... Ne4 {[%clk
0:00:03.3]} 77. Ra3 {[%clk 0:00:04.2]} 77... Kf4 {[%clk 0:00:03.2]} 78. Rb3
{[%clk 0:00:04.4]} 78... Rc2 {[%clk 0:00:03.4]} 79. Ra3 {[%clk 0:00:04.7]} 79...
Ng5 {[%clk 0:00:03.8]} 80. Kh1 {[%clk 0:00:05.1]} 80... Kg4 {[%clk 0:00:03.1]}
81. Rb3 {[%clk 0:00:05.3]} 81... Rf2 {[%clk 0:00:03.5]} 82. Ra3 {[%clk
0:00:05.6]} 82... Rb2 {[%clk 0:00:03.3]} 83. Rc3 {[%clk 0:00:05.7]} 83... Ne4
{[%clk 0:00:03.8]} 84. Re3 {[%clk 0:00:05.6]} 84... Ng3+ {[%clk 0:00:04.1]} 85.
Kg1 {[%clk 0:00:05.3]} 85... Kh3 {[%clk 0:00:04.7]} 86. Re2 {[%clk 0:00:04.3]}
86... Nxe2+ {[%clk 0:00:04.5]} 87. Kf2 {[%clk 0:00:04.7]} 87... Ng3+ {[%clk
0:00:04.7]} 0-1

[Event "Late-Titled-Tuesday-Blitz-February-27-2024"]
[Site "Chess.com"]
[Date "2024.02.27"]
[Round "10"]
[White "HeinichessPY"]
[Black "Nick12772"]
[Result "1/2-1/2"]
[WhiteElo "2258"]
[BlackElo "2377"]
[TimeControl "180+1"]
[EndTime "15:58:13 PST"]
[Termination "Game drawn by 50-move rule"]

1. Nf3 {[%clk 0:02:59.7]} 1... Nf6 {[%clk 0:03:00.1]} 2. c4 {[%clk 0:02:58.1]}
2... c6 {[%clk 0:02:59.8]} 3. Nc3 {[%clk 0:02:56.3]} 3... d5 {[%clk 0:02:59.8]}
4. g3 {[%clk 0:02:54.8]} 4... g6 {[%clk 0:02:59.7]} 5. Bg2 {[%clk 0:02:54.4]}
5... Bg7 {[%clk 0:02:59.6]} 6. O-O {[%clk 0:02:54.9]} 6... O-O {[%clk
0:03:00.3]} 7. cxd5 {[%clk 0:02:42.9]} 7... cxd5 {[%clk 0:03:00.4]} 8. d3 {[%clk
0:02:33.3]} 8... Nc6 {[%clk 0:02:59.8]} 9. a3 {[%clk 0:02:29.7]} 9... Bf5 {[%clk
0:02:54.5]} 10. h3 {[%clk 0:02:08.9]} 10... Qd7 {[%clk 0:02:37]} 11. Kh2 {[%clk
0:02:07]} 11... Rac8 {[%clk 0:02:34.7]} 12. Bf4 {[%clk 0:02:00.1]} 12... Rfe8
{[%clk 0:02:31.1]} 13. Ne5 {[%clk 0:01:58.7]} 13... Nxe5 {[%clk 0:02:30.4]} 14.
Bxe5 {[%clk 0:01:59.6]} 14... d4 {[%clk 0:02:13.5]} 15. Nb1 {[%clk 0:01:44.8]}
15... Be6 {[%clk 0:02:13.3]} 16. Nd2 {[%clk 0:01:42.7]} 16... Ng4+ {[%clk
0:02:07.1]} 17. hxg4 {[%clk 0:01:36.4]} 17... Bxe5 {[%clk 0:02:07.2]} 18. f4
{[%clk 0:01:30.5]} 18... Bb8 {[%clk 0:02:03.5]} 19. f5 {[%clk 0:01:29.2]} 19...
gxf5 {[%clk 0:01:14.5]} 20. gxf5 {[%clk 0:01:28.8]} 20... Bxf5 {[%clk
0:01:13.2]} 21. Ne4 {[%clk 0:01:17.7]} 21... Kh8 {[%clk 0:00:54.4]} 22. Qd2
{[%clk 0:01:07.2]} 22... Rg8 {[%clk 0:00:53.3]} 23. Ng5 {[%clk 0:00:43.4]} 23...
f6 {[%clk 0:00:42.3]} 24. Rxf5 {[%clk 0:00:16.5]} 24... Qxf5 {[%clk 0:00:27.7]}
25. Nf7+ {[%clk 0:00:17.1]} 25... Kg7 {[%clk 0:00:27.8]} 26. Bh3 {[%clk
0:00:04.8]} 26... Qf2+ {[%clk 0:00:24.4]} 27. Kh1 {[%clk 0:00:05.3]} 27... Kxf7
{[%clk 0:00:22.1]} 28. Rf1 {[%clk 0:00:04.2]} 28... Qxg3 {[%clk 0:00:20.7]} 29.
Qh6 {[%clk 0:00:03.8]} 29... Rg7 {[%clk 0:00:16.2]} 30. Qh5+ {[%clk 0:00:03.8]}
30... Qg6 {[%clk 0:00:16]} 31. Qxg6+ {[%clk 0:00:02.4]} 31... Rxg6 {[%clk
0:00:13.9]} 32. Bxc8 {[%clk 0:00:03.3]} 32... Rh6+ {[%clk 0:00:14.6]} 33. Kg2
{[%clk 0:00:03.3]} 33... Rh2+ {[%clk 0:00:15.1]} 34. Kf3 {[%clk 0:00:03.7]}
34... Be5 {[%clk 0:00:11.5]} 35. Bxb7 {[%clk 0:00:03.9]} 35... Rh3+ {[%clk
0:00:10.4]} 36. Kg2 {[%clk 0:00:03.6]} 36... Re3 {[%clk 0:00:10.7]} 37. Bd5+
{[%clk 0:00:02.8]} 37... e6 {[%clk 0:00:10.7]} 38. Bf3 {[%clk 0:00:03.2]} 38...
f5 {[%clk 0:00:05.5]} 39. Rc1 {[%clk 0:00:03.3]} 39... Kf6 {[%clk 0:00:04.7]}
40. Rc6 {[%clk 0:00:03.1]} 40... h5 {[%clk 0:00:03.8]} 41. Bxh5 {[%clk
0:00:02.2]} 41... Rg3+ {[%clk 0:00:04.6]} 42. Kf2 {[%clk 0:00:02.2]} 42... Rg5
{[%clk 0:00:04.9]} 43. Bf3 {[%clk 0:00:02.5]} 43... Rg7 {[%clk 0:00:05.4]} 44.
Bd5 {[%clk 0:00:02.6]} 44... Re7 {[%clk 0:00:05.2]} 45. Bc4 {[%clk 0:00:02.4]}
45... f4 {[%clk 0:00:05.4]} 46. Kf3 {[%clk 0:00:02.6]} 46... Kf5 {[%clk
0:00:06.1]} 47. b3 {[%clk 0:00:01.4]} 47... Bf6 {[%clk 0:00:05.7]} 48. a4 {[%clk
0:00:02]} 48... e5 {[%clk 0:00:06.3]} 49. Rc8 {[%clk 0:00:02.5]} 49... Kg5
{[%clk 0:00:05.8]} 50. Bd5 {[%clk 0:00:02.8]} 50... Rg7 {[%clk 0:00:05.6]} 51.
Be4 {[%clk 0:00:03.7]} 51... Rb7 {[%clk 0:00:04.4]} 52. Rg8+ {[%clk 0:00:03.8]}
52... Rg7 {[%clk 0:00:04.1]} 53. Rxg7+ {[%clk 0:00:03.9]} 53... Bxg7 {[%clk
0:00:05]} 54. Bd5 {[%clk 0:00:04.3]} 54... Kf6 {[%clk 0:00:05.3]} 55. Be4 {[%clk
0:00:05.2]} 55... Ke7 {[%clk 0:00:05.9]} 56. a5 {[%clk 0:00:05.4]} 56... Kd6
{[%clk 0:00:06.4]} 57. a6 {[%clk 0:00:06.1]} 57... Kc5 {[%clk 0:00:06.9]} 58.
Bb7 {[%clk 0:00:06.7]} 58... Kb4 {[%clk 0:00:07.3]} 59. Bd5 {[%clk 0:00:07.4]}
59... Kc3 {[%clk 0:00:07.8]} 60. Bc4 {[%clk 0:00:08]} 60... Kd2 {[%clk
0:00:08.2]} 61. Ke4 {[%clk 0:00:08.7]} 61... Kxe2 {[%clk 0:00:08.4]} 62. Be6
{[%clk 0:00:07.1]} 62... f3 {[%clk 0:00:08.7]} 63. Bg4 {[%clk 0:00:07.9]} 63...
Kd2 {[%clk 0:00:06.1]} 64. Bxf3 {[%clk 0:00:08.4]} 64... Kc3 {[%clk 0:00:07]}
65. Bg4 {[%clk 0:00:08.2]} 65... Kxb3 {[%clk 0:00:07.3]} 66. Bc8 {[%clk
0:00:08.6]} 66... Kc3 {[%clk 0:00:07.3]} 67. Bb7 {[%clk 0:00:09.2]} 67... Kb4
{[%clk 0:00:07.9]} 68. Bd5 {[%clk 0:00:09.8]} 68... Kc5 {[%clk 0:00:08.6]} 69.
Bb7 {[%clk 0:00:10.5]} 69... Kb6 {[%clk 0:00:09.2]} 70. Bc8 {[%clk 0:00:10.5]}
70... Kc7 {[%clk 0:00:08.6]} 71. Bb7 {[%clk 0:00:11.2]} 71... Kd6 {[%clk
0:00:09.1]} 72. Bc8 {[%clk 0:00:11.3]} 72... Ke7 {[%clk 0:00:09.1]} 73. Bb7
{[%clk 0:00:11.9]} 73... Kd7 {[%clk 0:00:09.9]} 74. Bd5 {[%clk 0:00:11.2]} 74...
Kc7 {[%clk 0:00:10.3]} 75. Bb7 {[%clk 0:00:11.7]} 75... Kb6 {[%clk 0:00:10.7]}
76. Bc8 {[%clk 0:00:12]} 76... Kb5 {[%clk 0:00:10.6]} 77. Bb7 {[%clk 0:00:12.2]}
77... Bf6 {[%clk 0:00:10.7]} 78. Bc8 {[%clk 0:00:12.7]} 78... Bh8 {[%clk
0:00:10.5]} 79. Bb7 {[%clk 0:00:13.2]} 79... Kb4 {[%clk 0:00:10.8]} 80. Bc8
{[%clk 0:00:13.5]} 80... Kc3 {[%clk 0:00:11.5]} 81. Bb7 {[%clk 0:00:12.8]} 81...
Kd2 {[%clk 0:00:12.1]} 82. Bc8 {[%clk 0:00:12.7]} 82... Ke2 {[%clk 0:00:13]} 83.
Bb7 {[%clk 0:00:13.3]} 83... Kf2 {[%clk 0:00:13.9]} 84. Bc8 {[%clk 0:00:14]}
84... Kg3 {[%clk 0:00:14.8]} 85. Bb7 {[%clk 0:00:14.7]} 85... Kh4 {[%clk
0:00:15.7]} 86. Bc8 {[%clk 0:00:15.4]} 86... Kg5 {[%clk 0:00:16.6]} 87. Bb7
{[%clk 0:00:16.1]} 87... Kf6 {[%clk 0:00:17.5]} 88. Bc8 {[%clk 0:00:16.7]} 88...
Ke7 {[%clk 0:00:18.4]} 89. Bb7 {[%clk 0:00:17.4]} 89... Kd8 {[%clk 0:00:19.3]}
90. Bd5 {[%clk 0:00:16.3]} 90... Kc7 {[%clk 0:00:19.9]} 91. Bb7 {[%clk
0:00:16.6]} 91... Kd6 {[%clk 0:00:20.5]} 92. Bc8 {[%clk 0:00:16.7]} 92... Kc5
{[%clk 0:00:20.7]} 93. Bb7 {[%clk 0:00:17.1]} 93... Bg7 {[%clk 0:00:21.4]} 94.
Bc8 {[%clk 0:00:11.6]} 94... Kb6 {[%clk 0:00:22.3]} 95. Bb7 {[%clk 0:00:11.4]}
95... Kc7 {[%clk 0:00:22.7]} 96. Bd5 {[%clk 0:00:11.2]} 96... Bf8 {[%clk
0:00:22.4]} 97. Bb7 {[%clk 0:00:11.5]} 97... Be7 {[%clk 0:00:22.5]} 98. Bd5
{[%clk 0:00:11.9]} 98... Bc5 {[%clk 0:00:22.6]} 99. Bb7 {[%clk 0:00:12]} 99...
Kb6 {[%clk 0:00:22.3]} 100. Bc8 {[%clk 0:00:12.1]} 100... Bd6 {[%clk 0:00:22]}
101. Bb7 {[%clk 0:00:12.4]} 101... Bc7 {[%clk 0:00:22.6]} 102. Bc8 {[%clk
0:00:12.7]} 102... Bb8 {[%clk 0:00:23.2]} 103. Bb7 {[%clk 0:00:13]} 103... Kc7
{[%clk 0:00:23.7]} 104. Bd5 {[%clk 0:00:12.9]} 104... Kb6 {[%clk 0:00:23.5]}
105. Bb7 {[%clk 0:00:13.2]} 105... Kc5 {[%clk 0:00:24.1]} 106. Bc8 {[%clk
0:00:13.4]} 106... Kb4 {[%clk 0:00:24.6]} 107. Bb7 {[%clk 0:00:13.7]} 107... Kc3
{[%clk 0:00:25.5]} 108. Bc8 {[%clk 0:00:14.4]} 108... Kd2 {[%clk 0:00:26.4]}
109. Bb7 {[%clk 0:00:15]} 109... Ke1 {[%clk 0:00:27.3]} 110. Bc8 {[%clk
0:00:15.7]} 110... Kf2 {[%clk 0:00:28.2]} 111. Bb7 {[%clk 0:00:16.3]} 111... Kg3
{[%clk 0:00:29.1]} 112. Bc8 {[%clk 0:00:16.9]} 112... Kh4 {[%clk 0:00:30]} 113.
Bb7 {[%clk 0:00:17.5]} 113... Kh5 {[%clk 0:00:30.9]} 114. Bc8 {[%clk 0:00:18.1]}
114... Kh6 {[%clk 0:00:31.8]} 115. Bb7 {[%clk 0:00:18.8]} 115... Kh7 {[%clk
0:00:32.7]} 1/2-1/2